[Event "*** Titled Tuesday Blitz"]
[Site "Chess.com"]
[Date "2019.06.04"]
[Round "1"]
[White "awesomevishesh"]
[Black "Msb2"]
[Result "1/2-1/2"]
[WhiteElo "2437"]
[BlackElo "2800"]
[TimeControl "180+2"]
[EndTime "13:09:50 PDT"]
[Termination "Game drawn by repetition"]

1. d4 {[%clk 0:03:01.3]} 1... Nf6 {[%clk 0:03:00.6]} 2. c4 {[%clk 0:03:01.7]}
2... e6 {[%clk 0:03:01.9]} 3. g3 {[%clk 0:03:02.5]} 3... d5 {[%clk 0:03:02.9]}
4. Bg2 {[%clk 0:03:03.3]} 4... Bb4+ {[%clk 0:03:04.5]} 5. Nd2 {[%clk 0:03:03.2]}
5... Bd6 {[%clk 0:03:06.1]} 6. Ngf3 {[%clk 0:03:02.2]} 6... O-O {[%clk
0:03:06.8]} 7. O-O {[%clk 0:03:01.4]} 7... b6 {[%clk 0:03:07.7]} 8. b3 {[%clk
0:03:00.1]} 8... Bb7 {[%clk 0:03:08]} 9. Bb2 {[%clk 0:03:00.9]} 9... Nbd7 {[%clk
0:03:04.1]} 10. Ne5 {[%clk 0:02:45.2]} 10... Rc8 {[%clk 0:02:56.3]} 11. cxd5
{[%clk 0:02:44.5]} 11... exd5 {[%clk 0:02:57.5]} 12. Rc1 {[%clk 0:02:42.6]}
12... Re8 {[%clk 0:02:28.5]} 13. Nc6 {[%clk 0:02:34.7]} 13... Bxc6 {[%clk
0:02:29.8]} 14. Rxc6 {[%clk 0:02:35.1]} 14... Qe7 {[%clk 0:02:30.9]} 15. e3
{[%clk 0:02:33.1]} 15... Nb8 {[%clk 0:02:25]} 16. Rc1 {[%clk 0:02:19.1]} 16...
Ba3 {[%clk 0:02:23.4]} 17. Qc2 {[%clk 0:02:13.1]} 17... Bxb2 {[%clk 0:02:18.6]}
18. Qxb2 {[%clk 0:02:13.8]} 18... c5 {[%clk 0:02:20.3]} 19. Nf3 {[%clk
0:02:08.3]} 19... Nbd7 {[%clk 0:02:16.2]} 20. Rfd1 {[%clk 0:02:07.7]} 20... Rc7
{[%clk 0:02:15]} 21. dxc5 {[%clk 0:01:58.9]} 21... bxc5 {[%clk 0:02:15]} 22. Nh4
{[%clk 0:01:42.9]} 22... Nb6 {[%clk 0:02:14.9]} 23. a4 {[%clk 0:01:28.8]} 23...
Qe5 {[%clk 0:01:37.4]} 24. Qxe5 {[%clk 0:00:47.9]} 24... Rxe5 {[%clk 0:01:39.3]}
25. Nf3 {[%clk 0:00:42.5]} 25... Re8 {[%clk 0:01:38.2]} 26. Nd4 {[%clk
0:00:41.1]} 26... a6 {[%clk 0:01:35.7]} 27. Rc2 {[%clk 0:00:36.3]} 27... Rec8
{[%clk 0:01:27.8]} 28. Rdc1 {[%clk 0:00:32.1]} 28... c4 {[%clk 0:01:21]} 29.
bxc4 {[%clk 0:00:21.3]} 29... Rxc4 {[%clk 0:01:20.4]} 30. Rxc4 {[%clk 0:00:20]}
30... Rxc4 {[%clk 0:01:20.7]} 31. Rb1 {[%clk 0:00:18.2]} 31... Nbd7 {[%clk
0:01:15.3]} 32. a5 {[%clk 0:00:13.7]} 32... Rc5 {[%clk 0:01:16.8]} 33. Ra1
{[%clk 0:00:08.9]} 33... g6 {[%clk 0:01:17.3]} 34. Bf1 {[%clk 0:00:10]} 34...
Nb8 {[%clk 0:01:17.3]} 35. Rb1 {[%clk 0:00:11.1]} 35... Nfd7 {[%clk 0:01:17.4]}
36. Nb3 {[%clk 0:00:08.8]} 36... Rc3 {[%clk 0:01:13.6]} 37. Nd4 {[%clk
0:00:09.1]} 37... Ra3 {[%clk 0:01:15.3]} 38. Nb3 {[%clk 0:00:09.3]} 38... Kg7
{[%clk 0:01:05.3]} 39. Bg2 {[%clk 0:00:10.4]} 39... Nc6 {[%clk 0:00:59.2]} 40.
Bxd5 {[%clk 0:00:08.9]} 40... Nxa5 {[%clk 0:01:00.9]} 41. Nxa5 {[%clk
0:00:09.4]} 41... Rxa5 {[%clk 0:01:02.8]} 42. e4 {[%clk 0:00:10.8]} 42... Rb5
{[%clk 0:01:03.2]} 43. Rc1 {[%clk 0:00:11.2]} 43... Nf6 {[%clk 0:01:03.4]} 44.
Rc6 {[%clk 0:00:10.3]} 44... Nxd5 {[%clk 0:00:56]} 45. exd5 {[%clk 0:00:11.3]}
45... a5 {[%clk 0:00:57.7]} 46. d6 {[%clk 0:00:11.5]} 46... Kf6 {[%clk
0:00:59.3]} 47. Ra6 {[%clk 0:00:11.6]} 47... Ke6 {[%clk 0:01:00.5]} 48. Ra7
{[%clk 0:00:12.2]} 48... Kxd6 {[%clk 0:00:51.9]} 49. Rxf7 {[%clk 0:00:12.2]}
49... Kc5 {[%clk 0:00:53.5]} 50. Rxh7 {[%clk 0:00:11.7]} 50... a4 {[%clk
0:00:55.2]} 51. Ra7 {[%clk 0:00:11.2]} 51... Kb4 {[%clk 0:00:56.6]} 52. Kg2
{[%clk 0:00:08.4]} 52... a3 {[%clk 0:00:58]} 53. f4 {[%clk 0:00:06.7]} 53... Ra5
{[%clk 0:00:59.3]} 54. Rb7+ {[%clk 0:00:07.3]} 54... Rb5 {[%clk 0:01:00.7]} 55.
Ra7 {[%clk 0:00:08.3]} 55... Ra5 {[%clk 0:00:58]} 56. Rb7+ {[%clk 0:00:08.2]}
56... Kc3 {[%clk 0:00:59.6]} 57. Rc7+ {[%clk 0:00:08.7]} 57... Kd2 {[%clk
0:00:55.6]} 58. Rd7+ {[%clk 0:00:07.9]} 58... Ke3 {[%clk 0:00:55.3]} 59. Re7+
{[%clk 0:00:08.4]} 59... Kd3 {[%clk 0:00:56.7]} 60. Rd7+ {[%clk 0:00:09.5]}
60... Kc3 {[%clk 0:00:45.8]} 61. Rc7+ {[%clk 0:00:10.2]} 61... Kb4 {[%clk
0:00:47.2]} 62. Rb7+ {[%clk 0:00:10.8]} 1/2-1/2

[Event "*** Titled Tuesday Blitz"]
[Site "Chess.com"]
[Date "2019.06.04"]
[Round "1"]
[White "DavidStevanic"]
[Black "riconaipe"]
[Result "0-1"]
[WhiteElo "2202"]
[BlackElo "2579"]
[TimeControl "180+2"]
[EndTime "13:10:00 PDT"]
[Termination "riconaipe won on time"]

1. e4 {[%clk 0:02:59.7]} 1... c6 {[%clk 0:03:00.5]} 2. d4 {[%clk 0:02:59.7]}
2... d5 {[%clk 0:03:01.5]} 3. f3 {[%clk 0:02:57.2]} 3... e6 {[%clk 0:02:59.4]}
4. Nc3 {[%clk 0:02:55.7]} 4... Bb4 {[%clk 0:03:00.3]} 5. Qd3 {[%clk 0:02:47]}
5... Nf6 {[%clk 0:02:59.6]} 6. Bg5 {[%clk 0:02:38]} 6... h6 {[%clk 0:02:53.9]}
7. Bh4 {[%clk 0:02:37]} 7... Bxc3+ {[%clk 0:02:47.2]} 8. bxc3 {[%clk 0:02:29]}
8... Qa5 {[%clk 0:02:48]} 9. Ne2 {[%clk 0:02:10.2]} 9... b6 {[%clk 0:02:46.1]}
10. e5 {[%clk 0:02:08.1]} 10... Nfd7 {[%clk 0:02:45.5]} 11. f4 {[%clk 0:02:09]}
11... Ba6 {[%clk 0:02:42.1]} 12. Qg3 {[%clk 0:02:09.1]} 12... Rg8 {[%clk
0:02:42.9]} 13. Qh3 {[%clk 0:02:00.7]} 13... c5 {[%clk 0:02:29.1]} 14. Kf2
{[%clk 0:01:46.7]} 14... Nc6 {[%clk 0:02:28.8]} 15. f5 {[%clk 0:01:38.8]} 15...
exf5 {[%clk 0:02:21.3]} 16. Qxf5 {[%clk 0:01:36.2]} 16... g5 {[%clk 0:02:13.8]}
17. e6 {[%clk 0:01:28]} 17... fxe6 {[%clk 0:01:54.9]} 18. Qxe6+ {[%clk
0:01:26.5]} 18... Ne7 {[%clk 0:01:56.2]} 19. Bg3 {[%clk 0:00:39.4]} 19... Rf8+
{[%clk 0:01:56.2]} 20. Kg1 {[%clk 0:00:38.2]} 20... Bxe2 {[%clk 0:01:53.2]} 21.
Bd6 {[%clk 0:00:28.2]} 21... Rf7 {[%clk 0:01:50.8]} 22. Bxe2 {[%clk 0:00:23.9]}
22... Qxc3 {[%clk 0:01:51.4]} 23. Rd1 {[%clk 0:00:19.5]} 23... Nf8 {[%clk
0:01:25.9]} 24. Qe5 {[%clk 0:00:15.9]} 24... Ng6 {[%clk 0:01:23.5]} 25. Qe6
{[%clk 0:00:16.8]} 25... Rd8 {[%clk 0:01:17.6]} 26. Bxe7 {[%clk 0:00:16.4]}
26... Nf4 {[%clk 0:01:03.1]} 27. Qe5 {[%clk 0:00:10.5]} 27... Rxe7 {[%clk
0:00:59.9]} 28. Bh5+ {[%clk 0:00:05.9]} 28... Kd7 {[%clk 0:01:01]} 29. Bg4+
{[%clk 0:00:05.6]} 29... Ke8 {[%clk 0:00:58.7]} 30. Qh8+ {[%clk 0:00:06.2]}
30... Kf7 {[%clk 0:00:57.2]} 31. Qh7+ {[%clk 0:00:05.6]} 31... Kf6 {[%clk
0:00:57.2]} 32. Qxh6+ {[%clk 0:00:06.2]} 32... Kf7 {[%clk 0:00:53.9]} 33. Qh7+
{[%clk 0:00:07]} 33... Kf8 {[%clk 0:00:54.8]} 34. Qh8+ {[%clk 0:00:06.4]} 34...
Kf7 {[%clk 0:00:55.9]} 35. Qh7+ {[%clk 0:00:07.3]} 35... Kf6 {[%clk 0:00:55.2]}
36. Qf5+ {[%clk 0:00:07.1]} 36... Kg7 {[%clk 0:00:54.2]} 37. Qxg5+ {[%clk
0:00:07.1]} 37... Ng6 {[%clk 0:00:55.6]} 38. Qd2 {[%clk 0:00:04.7]} 38... Qxd2
{[%clk 0:00:53.7]} 39. Rxd2 {[%clk 0:00:05.7]} 39... Re1+ {[%clk 0:00:55.2]} 40.
Kf2 {[%clk 0:00:06.9]} 40... Rxh1 {[%clk 0:00:56.9]} 41. h3 {[%clk 0:00:06.9]}
41... c4 {[%clk 0:00:47.6]} 42. Kg3 {[%clk 0:00:04.8]} 42... Re1 {[%clk
0:00:48.3]} 43. Rf2 {[%clk 0:00:04.9]} 43... Re4 {[%clk 0:00:47.8]} 44. h4
{[%clk 0:00:03.9]} 44... Rxd4 {[%clk 0:00:46]} 45. Bf5 {[%clk 0:00:02.7]} 45...
Nxh4 {[%clk 0:00:45.3]} 46. Bg4 {[%clk 0:00:04]} 46... Ng6 {[%clk 0:00:46.3]}
47. Bf5 {[%clk 0:00:05.2]} 47... Rf8 {[%clk 0:00:45.7]} 48. c3 {[%clk
0:00:05.5]} 48... Rd1 {[%clk 0:00:45]} 49. Bxg6 {[%clk 0:00:05.9]} 49... Rxf2
{[%clk 0:00:44.8]} 50. Kxf2 {[%clk 0:00:06.2]} 50... Kxg6 {[%clk 0:00:46.1]} 51.
Ke2 {[%clk 0:00:08.1]} 51... Ra1 {[%clk 0:00:46.4]} 52. Ke3 {[%clk 0:00:10]}
52... Rxa2 {[%clk 0:00:48.1]} 53. Kd4 {[%clk 0:00:11.8]} 53... Rxg2 {[%clk
0:00:48.8]} 54. Kxd5 {[%clk 0:00:12.6]} 54... b5 {[%clk 0:00:47.9]} 55. Kc5
{[%clk 0:00:13.2]} 55... a6 {[%clk 0:00:49.5]} 56. Kb4 {[%clk 0:00:11.1]} 56...
Kf6 {[%clk 0:00:48.9]} 57. Ka5 {[%clk 0:00:12.4]} 57... Ke6 {[%clk 0:00:49.9]}
58. Kxa6 {[%clk 0:00:13.8]} 58... b4 {[%clk 0:00:50.9]} 59. cxb4 {[%clk
0:00:12.7]} 59... c3 {[%clk 0:00:52.2]} 60. b5 {[%clk 0:00:14.6]} 60... c2
{[%clk 0:00:53.6]} 61. b6 {[%clk 0:00:16.5]} 61... c1=Q {[%clk 0:00:54.2]} 62.
b7 {[%clk 0:00:18.4]} 62... Rb2 {[%clk 0:00:53.9]} 63. Ka7 {[%clk 0:00:19]}
63... Qc7 {[%clk 0:00:48.9]} 0-1

[Event "*** Titled Tuesday Blitz"]
[Site "Chess.com"]
[Date "2019.06.04"]
[Round "1"]
[White "LastHeroJr"]
[Black "gemarin"]
[Result "0-1"]
[WhiteElo "2500"]
[BlackElo "2050"]
[TimeControl "180+2"]
[EndTime "13:10:02 PDT"]
[Termination "gemarin won by resignation"]

1. e4 {[%clk 0:03:01.9]} 1... c5 {[%clk 0:03:00.2]} 2. Nf3 {[%clk 0:03:03]} 2...
Nc6 {[%clk 0:03:00.8]} 3. d4 {[%clk 0:03:04.1]} 3... cxd4 {[%clk 0:03:01.8]} 4.
Nxd4 {[%clk 0:03:06]} 4... Nf6 {[%clk 0:03:02]} 5. Nc3 {[%clk 0:03:07]} 5... d6
{[%clk 0:03:02.1]} 6. Bg5 {[%clk 0:03:07.4]} 6... e6 {[%clk 0:03:02.3]} 7. Qd2
{[%clk 0:03:08.7]} 7... a6 {[%clk 0:03:02.7]} 8. O-O-O {[%clk 0:03:09.4]} 8...
h6 {[%clk 0:03:03.1]} 9. Be3 {[%clk 0:03:09.7]} 9... Be7 {[%clk 0:02:59.9]} 10.
f4 {[%clk 0:02:55]} 10... Qc7 {[%clk 0:02:58.9]} 11. Kb1 {[%clk 0:02:44.4]}
11... b5 {[%clk 0:02:46.5]} 12. Nxc6 {[%clk 0:02:37.2]} 12... Qxc6 {[%clk
0:02:46]} 13. e5 {[%clk 0:02:23.8]} 13... dxe5 {[%clk 0:02:26.5]} 14. fxe5
{[%clk 0:02:23.4]} 14... Nd7 {[%clk 0:02:27.4]} 15. Bd4 {[%clk 0:02:18.5]} 15...
b4 {[%clk 0:02:17.1]} 16. Ne2 {[%clk 0:02:17.5]} 16... Bb7 {[%clk 0:02:15.3]}
17. Ng3 {[%clk 0:02:16.2]} 17... Bg5 {[%clk 0:02:02.7]} 18. Qf2 {[%clk
0:02:11.8]} 18... O-O {[%clk 0:02:00.3]} 19. h4 {[%clk 0:01:45.8]} 19... Be7
{[%clk 0:01:58.8]} 20. Be2 {[%clk 0:01:20.9]} 20... Rac8 {[%clk 0:01:50.6]} 21.
Bf3 {[%clk 0:01:12.8]} 21... Qc7 {[%clk 0:01:50.6]} 22. Bxb7 {[%clk 0:01:01.7]}
22... Qxb7 {[%clk 0:01:51.1]} 23. Nh5 {[%clk 0:00:59.5]} 23... Qe4 {[%clk
0:01:39.9]} 24. g4 {[%clk 0:00:48.1]} 24... Bc5 {[%clk 0:01:33.3]} 25. Rhe1
{[%clk 0:00:40.3]} 25... Qxg4 {[%clk 0:01:14.1]} 26. Nf6+ {[%clk 0:00:32.4]}
26... Nxf6 {[%clk 0:01:12.8]} 27. Bxc5 {[%clk 0:00:33.7]} 27... Nd5 {[%clk
0:01:07.8]} 28. Bxf8 {[%clk 0:00:34.4]} 28... Kxf8 {[%clk 0:01:02.2]} 29. Rg1
{[%clk 0:00:35.4]} 29... Qh5 {[%clk 0:00:53.8]} 30. Qg3 {[%clk 0:00:32.2]} 30...
g6 {[%clk 0:00:50.6]} 31. Rdf1 {[%clk 0:00:31.6]} 31... Kg8 {[%clk 0:00:37.4]}
32. Qf2 {[%clk 0:00:30.6]} 32... Rc7 {[%clk 0:00:37.8]} 33. Qd4 {[%clk 0:00:26]}
33... Qe2 {[%clk 0:00:32.5]} 34. Rf2 {[%clk 0:00:25.8]} 34... Qc4 {[%clk
0:00:30.1]} 35. Qd2 {[%clk 0:00:21.3]} 35... Qxh4 {[%clk 0:00:29.5]} 36. Rh2
{[%clk 0:00:21.1]} 36... Qf4 {[%clk 0:00:30.5]} 37. Qe2 {[%clk 0:00:19.8]} 37...
Kg7 {[%clk 0:00:26]} 38. Rf1 {[%clk 0:00:19.5]} 38... Qe3 {[%clk 0:00:26.1]} 39.
Qg2 {[%clk 0:00:15.1]} 39... Qxe5 {[%clk 0:00:24.5]} 40. Qh3 {[%clk 0:00:15.1]}
40... h5 {[%clk 0:00:23.7]} 41. Rhf2 {[%clk 0:00:16]} 41... Ne3 {[%clk
0:00:22.5]} 42. Re1 {[%clk 0:00:14.5]} 42... f5 {[%clk 0:00:22.7]} 43. Qxe3
{[%clk 0:00:14.5]} 43... Qxe3 {[%clk 0:00:23.4]} 44. Rxe3 {[%clk 0:00:16.4]}
44... Kf6 {[%clk 0:00:24.5]} 45. a3 {[%clk 0:00:18.1]} 45... e5 {[%clk
0:00:25.4]} 46. axb4 {[%clk 0:00:19.3]} 46... e4 {[%clk 0:00:22.9]} 47. b3
{[%clk 0:00:20.3]} 47... Ke5 {[%clk 0:00:24.2]} 48. c4 {[%clk 0:00:21.1]} 48...
f4 {[%clk 0:00:24.2]} 49. Re1 {[%clk 0:00:22.6]} 49... e3 {[%clk 0:00:24]} 50.
Rg2 {[%clk 0:00:24]} 50... Kf5 {[%clk 0:00:23.8]} 51. Kc2 {[%clk 0:00:23.5]}
51... g5 {[%clk 0:00:24.2]} 52. Rh1 {[%clk 0:00:23.6]} 52... h4 {[%clk
0:00:23.8]} 53. Rhg1 {[%clk 0:00:25]} 53... Rg7 {[%clk 0:00:23.4]} 54. b5 {[%clk
0:00:26.4]} 54... f3 {[%clk 0:00:23.8]} 55. Rh2 {[%clk 0:00:26.2]} 55... g4
{[%clk 0:00:23.3]} 56. Rxh4 {[%clk 0:00:26.7]} 56... f2 {[%clk 0:00:24.3]} 57.
Rf1 {[%clk 0:00:27.3]} 57... g3 {[%clk 0:00:25.3]} 58. Kd3 {[%clk 0:00:27.7]}
58... g2 {[%clk 0:00:24.7]} 59. Rhh1 {[%clk 0:00:08.6]} 59... gxh1=Q {[%clk
0:00:24.3]} 60. Rxh1 {[%clk 0:00:07.8]} 60... Rg1 {[%clk 0:00:25.1]} 0-1

[Event "*** Titled Tuesday Blitz"]
[Site "Chess.com"]
[Date "2019.06.04"]
[Round "1"]
[White "Witik"]
[Black "Joseph_Truelson"]
[Result "1/2-1/2"]
[WhiteElo "2598"]
[BlackElo "2255"]
[TimeControl "180+2"]
[EndTime "13:10:04 PDT"]
[Termination "Game drawn by repetition"]

1. d4 {[%clk 0:02:52.7]} 1... d6 {[%clk 0:03:00.2]} 2. e4 {[%clk 0:02:48.4]}
2... Nf6 {[%clk 0:03:00.6]} 3. Nc3 {[%clk 0:02:43.4]} 3... e5 {[%clk 0:03:01.3]}
4. Nge2 {[%clk 0:02:37.6]} 4... Be7 {[%clk 0:02:58.4]} 5. h3 {[%clk 0:02:36.5]}
5... O-O {[%clk 0:02:54.3]} 6. g4 {[%clk 0:02:36.9]} 6... exd4 {[%clk
0:02:51.4]} 7. Nxd4 {[%clk 0:02:36.9]} 7... Nc6 {[%clk 0:02:53]} 8. Bg2 {[%clk
0:02:23.6]} 8... Re8 {[%clk 0:02:41.2]} 9. O-O {[%clk 0:02:22.5]} 9... Nxd4
{[%clk 0:02:36.3]} 10. Qxd4 {[%clk 0:02:23]} 10... c6 {[%clk 0:02:29.9]} 11. Bf4
{[%clk 0:02:08.2]} 11... Qb6 {[%clk 0:02:06]} 12. Qxb6 {[%clk 0:01:54.3]} 12...
axb6 {[%clk 0:02:07.9]} 13. Rad1 {[%clk 0:01:53.4]} 13... Rd8 {[%clk 0:02:03.8]}
14. a4 {[%clk 0:01:44.2]} 14... Be6 {[%clk 0:01:49.4]} 15. b3 {[%clk 0:01:35]}
15... Rd7 {[%clk 0:01:11.6]} 16. Rd3 {[%clk 0:01:26.3]} 16... d5 {[%clk
0:01:05.5]} 17. exd5 {[%clk 0:01:11.7]} 17... Nxd5 {[%clk 0:01:01.1]} 18. Nxd5
{[%clk 0:01:11.4]} 18... cxd5 {[%clk 0:01:01.1]} 19. Rfd1 {[%clk 0:01:08.1]}
19... Rad8 {[%clk 0:00:48]} 20. Be5 {[%clk 0:01:01.4]} 20... f6 {[%clk 0:00:43]}
21. Bd4 {[%clk 0:01:00.8]} 21... Bc5 {[%clk 0:00:43.2]} 22. c3 {[%clk
0:00:50.1]} 22... Kf7 {[%clk 0:00:25.5]} 23. f4 {[%clk 0:00:27.8]} 23... f5
{[%clk 0:00:24.3]} 24. g5 {[%clk 0:00:24.9]} 24... g6 {[%clk 0:00:24.6]} 25. Kf2
{[%clk 0:00:25.5]} 25... Kg8 {[%clk 0:00:18.8]} 26. h4 {[%clk 0:00:26.5]} 26...
Kf7 {[%clk 0:00:20]} 27. Bf3 {[%clk 0:00:27.8]} 27... Rc8 {[%clk 0:00:21.2]} 28.
Bxc5 {[%clk 0:00:23.4]} 28... Rxc5 {[%clk 0:00:23.1]} 29. c4 {[%clk 0:00:24.6]}
29... Ke7 {[%clk 0:00:15.6]} 30. cxd5 {[%clk 0:00:21.7]} 30... Bf7 {[%clk
0:00:17]} 31. d6+ {[%clk 0:00:22.9]} 31... Kd8 {[%clk 0:00:18.6]} 32. Ke3 {[%clk
0:00:23.1]} 32... Rc2 {[%clk 0:00:16.2]} 33. R1d2 {[%clk 0:00:22.2]} 33... Rc1
{[%clk 0:00:17.2]} 34. Rd1 {[%clk 0:00:21.1]} 34... Rc2 {[%clk 0:00:18]} 35. Rh1
{[%clk 0:00:18.8]} 35... Rb2 {[%clk 0:00:18.9]} 36. h5 {[%clk 0:00:19.5]} 36...
Rxb3 {[%clk 0:00:19.3]} 37. hxg6 {[%clk 0:00:20.3]} 37... Rxd3+ {[%clk
0:00:19.7]} 38. Kxd3 {[%clk 0:00:21.8]} 38... Rxd6+ {[%clk 0:00:20.7]} 39. Kc3
{[%clk 0:00:23.5]} 39... Bxg6 {[%clk 0:00:21.8]} 40. Bxb7 {[%clk 0:00:23.7]}
40... Kc7 {[%clk 0:00:23.2]} 41. Ba6 {[%clk 0:00:23.8]} 41... Re6 {[%clk
0:00:23.3]} 42. Bd3 {[%clk 0:00:21.1]} 42... Re3 {[%clk 0:00:23.7]} 43. Kd4
{[%clk 0:00:22.1]} 43... Rf3 {[%clk 0:00:24.3]} 44. Rh4 {[%clk 0:00:23.4]} 44...
Kd6 {[%clk 0:00:24.4]} 45. Bc4 {[%clk 0:00:24.6]} 45... Ra3 {[%clk 0:00:24.6]}
46. Bb5 {[%clk 0:00:24.8]} 46... Ra1 {[%clk 0:00:24.8]} 47. Kc4 {[%clk
0:00:18.6]} 47... Rc1+ {[%clk 0:00:25]} 48. Kd4 {[%clk 0:00:19.6]} 48... Rd1+
{[%clk 0:00:26.4]} 49. Kc3 {[%clk 0:00:19.5]} 49... Kc5 {[%clk 0:00:27.2]} 50.
Rh2 {[%clk 0:00:14.5]} 50... Rd4 {[%clk 0:00:27.9]} 51. Rf2 {[%clk 0:00:14.3]}
51... Re4 {[%clk 0:00:29]} 52. Kb3 {[%clk 0:00:13.4]} 52... Re3+ {[%clk
0:00:29.7]} 53. Kb2 {[%clk 0:00:13.7]} 53... Bf7 {[%clk 0:00:30.7]} 54. Rd2
{[%clk 0:00:12.7]} 54... Re4 {[%clk 0:00:27.1]} 55. Rd7 {[%clk 0:00:12.7]} 55...
Bg6 {[%clk 0:00:21.6]} 56. Rc7+ {[%clk 0:00:13.2]} 56... Kb4 {[%clk 0:00:21.6]}
57. Rc6 {[%clk 0:00:07.1]} 57... Ka5 {[%clk 0:00:22.5]} 58. Rc7 {[%clk
0:00:05.2]} 58... Rxf4 {[%clk 0:00:22.6]} 59. Kc3 {[%clk 0:00:06.7]} 59... Rf3+
{[%clk 0:00:23.3]} 60. Kc4 {[%clk 0:00:07.7]} 60... Rf4+ {[%clk 0:00:23.8]} 61.
Kc3 {[%clk 0:00:08.4]} 61... Rf3+ {[%clk 0:00:22.3]} 62. Kc4 {[%clk 0:00:09.4]}
62... Rf4+ {[%clk 0:00:23]} 63. Kc3 {[%clk 0:00:10.6]} 1/2-1/2

[Event "*** Titled Tuesday Blitz"]
[Site "Chess.com"]
[Date "2019.06.04"]
[Round "1"]
[White "Aragon"]
[Black "chessdude"]
[Result "1-0"]
[WhiteElo "2073"]
[BlackElo "2496"]
[TimeControl "180+2"]
[EndTime "13:10:06 PDT"]
[Termination "Aragon won by resignation"]

1. e4 {[%clk 0:02:59.4]} 1... c6 {[%clk 0:02:59.8]} 2. Nc3 {[%clk 0:02:58.8]}
2... d5 {[%clk 0:02:58.7]} 3. exd5 {[%clk 0:02:58.6]} 3... cxd5 {[%clk
0:02:59.3]} 4. d4 {[%clk 0:02:59.6]} 4... Nf6 {[%clk 0:02:53.2]} 5. Bf4 {[%clk
0:03:00.8]} 5... a6 {[%clk 0:02:54.1]} 6. Nf3 {[%clk 0:03:01.4]} 6... Bg4 {[%clk
0:02:51.6]} 7. Be2 {[%clk 0:03:01.4]} 7... e6 {[%clk 0:02:50.7]} 8. Ne5 {[%clk
0:03:02.2]} 8... Bxe2 {[%clk 0:02:51.1]} 9. Qxe2 {[%clk 0:03:04.1]} 9... Be7
{[%clk 0:02:52.4]} 10. O-O {[%clk 0:02:57.7]} 10... O-O {[%clk 0:02:53.1]} 11.
h3 {[%clk 0:02:53.1]} 11... Nc6 {[%clk 0:02:48.5]} 12. Nxc6 {[%clk 0:02:45]}
12... bxc6 {[%clk 0:02:50.4]} 13. Na4 {[%clk 0:02:34.5]} 13... Nd7 {[%clk
0:02:44.3]} 14. b3 {[%clk 0:02:32]} 14... Qa5 {[%clk 0:02:12.9]} 15. Bd2 {[%clk
0:02:27.1]} 15... Qb5 {[%clk 0:02:09.9]} 16. Qg4 {[%clk 0:02:23.5]} 16... Kh8
{[%clk 0:01:59.8]} 17. Rfe1 {[%clk 0:02:20.2]} 17... Bf6 {[%clk 0:01:57.5]} 18.
c3 {[%clk 0:02:13.8]} 18... Rfc8 {[%clk 0:01:57.1]} 19. Bg5 {[%clk 0:02:04.6]}
19... Bxg5 {[%clk 0:01:31]} 20. Qxg5 {[%clk 0:02:05.4]} 20... Re8 {[%clk
0:01:29.3]} 21. Qf4 {[%clk 0:01:53.8]} 21... Kg8 {[%clk 0:01:26.4]} 22. Re3
{[%clk 0:01:52.5]} 22... c5 {[%clk 0:01:18.1]} 23. dxc5 {[%clk 0:01:44.2]} 23...
Nxc5 {[%clk 0:01:19]} 24. Nxc5 {[%clk 0:01:45.1]} 24... Qxc5 {[%clk 0:01:20.9]}
25. Rae1 {[%clk 0:01:42.7]} 25... Rac8 {[%clk 0:01:20.6]} 26. Rg3 {[%clk
0:01:42]} 26... Qe7 {[%clk 0:01:16.5]} 27. Qd2 {[%clk 0:01:36.8]} 27... Qf6
{[%clk 0:01:15.9]} 28. Qd3 {[%clk 0:01:33.9]} 28... a5 {[%clk 0:01:14.7]} 29.
Ree3 {[%clk 0:01:33.5]} 29... Rc7 {[%clk 0:01:12.6]} 30. Ref3 {[%clk 0:01:33.1]}
30... Qe7 {[%clk 0:01:12.8]} 31. Qd4 {[%clk 0:01:33.3]} 31... g6 {[%clk
0:01:13.8]} 32. h4 {[%clk 0:01:33.4]} 32... Qc5 {[%clk 0:01:01.6]} 33. Qf6
{[%clk 0:01:28.5]} 33... Qe7 {[%clk 0:01:03]} 34. Qd4 {[%clk 0:01:29]} 34... Rd8
{[%clk 0:01:01.6]} 35. Re3 {[%clk 0:01:21.7]} 35... Qc5 {[%clk 0:01:01]} 36. Qe5
{[%clk 0:01:19.2]} 36... Qd6 {[%clk 0:01:01.5]} 37. Qg5 {[%clk 0:01:18.2]} 37...
Qe7 {[%clk 0:01:01.9]} 38. Qh6 {[%clk 0:01:18.6]} 38... Qf8 {[%clk 0:01:02.7]}
39. Qf4 {[%clk 0:01:18.5]} 39... Qd6 {[%clk 0:01:03.6]} 40. Qh6 {[%clk 0:01:19]}
40... Qf8 {[%clk 0:01:04.3]} 41. Qf4 {[%clk 0:01:19.8]} 41... Rdc8 {[%clk
0:01:02]} 42. h5 {[%clk 0:01:18.2]} 42... Qg7 {[%clk 0:01:02.9]} 43. h6 {[%clk
0:01:12.4]} 43... Qh8 {[%clk 0:01:04.2]} 44. Rgf3 {[%clk 0:01:09]} 44... Rd7
{[%clk 0:00:55.8]} 45. Qa4 {[%clk 0:01:08.6]} 45... Ra7 {[%clk 0:00:51.1]} 46.
Qf4 {[%clk 0:01:04.7]} 46... Rd7 {[%clk 0:00:48.6]} 47. Kh2 {[%clk 0:01:00.3]}
47... d4 {[%clk 0:00:46.1]} 48. cxd4 {[%clk 0:00:59]} 48... Qxd4 {[%clk
0:00:47]} 49. Re4 {[%clk 0:00:59.2]} 49... Qd6 {[%clk 0:00:44.9]} 50. Re5 {[%clk
0:01:00.4]} 50... Qe7 {[%clk 0:00:41.8]} 51. Qe4 {[%clk 0:00:54.3]} 51... Rcd8
{[%clk 0:00:41.8]} 52. Rxa5 {[%clk 0:00:54.3]} 52... Rd4 {[%clk 0:00:40.1]} 53.
Qe5 {[%clk 0:00:54]} 53... Qh4+ {[%clk 0:00:27.4]} 54. Rh3 {[%clk 0:00:52.9]}
54... Qf4+ {[%clk 0:00:28.9]} 55. Qxf4 {[%clk 0:00:53.8]} 55... Rxf4 {[%clk
0:00:30.8]} 56. f3 {[%clk 0:00:51.1]} 56... Rfd4 {[%clk 0:00:31.8]} 57. Kg3
{[%clk 0:00:51.7]} 57... Rd2 {[%clk 0:00:32.9]} 58. Rh4 {[%clk 0:00:52]} 58...
e5 {[%clk 0:00:33.4]} 59. Re4 {[%clk 0:00:48]} 59... R2d5 {[%clk 0:00:32.7]} 60.
Rxd5 {[%clk 0:00:45.8]} 60... Rxd5 {[%clk 0:00:34.6]} 61. a4 {[%clk 0:00:46.4]}
61... Kf8 {[%clk 0:00:34.4]} 62. b4 {[%clk 0:00:47]} 62... Ke7 {[%clk
0:00:35.2]} 63. b5 {[%clk 0:00:45.7]} 63... Kd7 {[%clk 0:00:36]} 64. Rc4 {[%clk
0:00:47]} 64... Rd1 {[%clk 0:00:35.9]} 65. b6 {[%clk 0:00:44.9]} 65... Ra1
{[%clk 0:00:36.9]} 66. Rc7+ {[%clk 0:00:43]} 66... Kd6 {[%clk 0:00:38.2]} 67.
Rxf7 {[%clk 0:00:42.5]} 67... Rxa4 {[%clk 0:00:39.1]} 68. b7 {[%clk 0:00:43.2]}
68... Rb4 {[%clk 0:00:40.4]} 69. Rxh7 {[%clk 0:00:44.4]} 69... Ke6 {[%clk
0:00:41.7]} 70. Rc7 {[%clk 0:00:43.3]} 70... Kd6 {[%clk 0:00:43]} 71. Rg7 {[%clk
0:00:38.1]} 1-0